fUST/lending_fUST_20251026
["ID","MTS","AMOUNT","RATE_DAILY","PERIOD"]
[392383065,1761414634096,-500.0,0.00016656,2]
[392383066,1761414634106,-1140.82,0.00016656,2]
[392383067,1761414634115,-500.0,0.00016656,2]
[392383068,1761414634126,-835.51,0.00016656,2]
[392383069,1761414634136,-500.0,0.00016656,2]
[392383070,1761414634147,-500.0,0.00016656,2]
[392383071,1761414634157,-500.0,0.00016656,2]
[392383072,1761414634168,-500.0,0.00016656,2]
[392383073,1761414634178,-713.1,0.00016656,2]
[392383074,1761414634188,-500.0,0.00016656,2]
[392383075,1761414634198,-500.0,0.00016656,2]
[392383076,1761414634207,-500.0,0.00016656,2]
[392383077,1761414634217,-500.0,0.00016656,2]
[392383078,1761414634229,-500.0,0.00016656,2]
[392383079,1761414634240,-549.17,0.00016656,2]
[392383080,1761414634250,-500.0,0.00016656,2]
[392383081,1761414634260,-278.43090321,0.00016656,2]
[392383082,1761414634271,-531.65,0.00016656,2]
[392383083,1761414634281,-500.0,0.00016656,2]
[392383084,1761414634291,-500.0,0.00016656,2]
[392383085,1761414634302,-500.0,0.00016656,2]
[392383086,1761414634550,-500.0,0.00016657,2]
[392383087,1761414634560,-500.0,0.00016657,2]
[392383088,1761414634570,-270.70461672,0.00016658,2]
[392383089,1761414634580,-500.0,0.00016672,2]
[392383090,1761414634589,-912.75,0.00016672,2]
[392383091,1761414634599,-1206.3,0.00016672,2]
[392383092,1761414634608,-819.4,0.00016672,2]
[392383093,1761414634617,-1112.55,0.00016672,2]
[392383094,1761414634627,-1169.15,0.00016672,2]
[392383095,1761414634637,-2127.21,0.00016672,2]
[392383096,1761414634647,-854.03,0.00016672,2]
[392383097,1761414634656,-601.52,0.00016672,2]
[392383098,1761414634666,-1711.17,0.00016672,2]
[392383099,1761414634675,-2880.72,0.00016672,2]
[392383100,1761414634684,-1029.49,0.00016672,2]
[392383101,1761414634694,-500.0,0.00016672,2]
[392383102,1761414634703,-932.49,0.00016672,2]
[392383103,1761414634712,-132.47753653,0.00016673,2]
[392383104,1761414634721,-500.0,0.00016673,2]
[392383105,1761414634730,-500.0,0.00016673,2]
[392383106,1761414634739,-500.0,0.00016673,2]
[392383107,1761414634748,-500.0,0.00016673,2]
[392383108,1761414634757,-500.0,0.00016673,2]
[392383109,1761414634767,-500.0,0.00016673,2]
[392383110,1761414634776,-500.0,0.00016673,2]
[392383111,1761414634785,-500.0,0.00016673,2]
[392383112,1761414634795,-500.0,0.00016673,2]
[392383113,1761414634804,-500.0,0.00016673,2]
[392383114,1761414634814,-500.0,0.00016673,2]
[392383115,1761414634824,-500.0,0.00016678,2]
[392383116,1761414634834,-500.0,0.00016679,2]
[392383117,1761414634844,-1000.0,0.00016679,2]
[392383118,1761414634853,-1000.0,0.00016679,2]
[392383119,1761414634862,-1000.0,0.00016679,2]
[392383120,1761414634872,-1000.0,0.00016679,2]
[392383121,1761414634881,-1000.0,0.00016679,2]
[392383122,1761414634891,-151.0,0.00016679,2]
[392383123,1761414634900,-1000.0,0.00016679,2]
[392383124,1761414634911,-151.0,0.00016679,2]
[392383125,1761414634921,-1000.0,0.00016679,2]
[392383126,1761414634930,-151.0,0.00016679,2]
[392383127,1761414634942,-1000.0,0.00016679,2]
[392383128,1761414634953,-213.96859442,0.00016679,2]
[392383129,1761414634964,-151.0,0.00016679,2]
[392383130,1761414634974,-1000.0,0.00016679,2]
[392383131,1761414634984,-151.0,0.00016679,2]
[392383132,1761414634995,-1000.0,0.00016679,2]
[392383133,1761414635005,-151.0,0.00016679,2]
[392383134,1761414635016,-1000.0,0.00016679,2]
[392383135,1761414635027,-151.0,0.00016679,2]
[392383136,1761414635037,-1000.0,0.00016679,2]
[392383137,1761414635046,-151.0,0.00016679,2]
[392383138,1761414635057,-1000.0,0.00016679,2]
[392383139,1761414635066,-151.0,0.00016679,2]
[392383140,1761414635075,-1000.0,0.00016679,2]
[392383141,1761414635087,-151.0,0.00016679,2]
[392383142,1761414635096,-1000.0,0.00016679,2]
[392383143,1761414635107,-151.0,0.00016679,2]
[392383144,1761414635117,-1000.0,0.00016679,2]
[392383145,1761414635126,-151.0,0.00016679,2]
[392383146,1761414635135,-1000.0,0.00016679,2]
[392383147,1761414635144,-151.0,0.00016679,2]
[392383148,1761414635155,-1000.0,0.00016679,2]
[392383149,1761414635165,-151.0,0.00016679,2]
[392383150,1761414635174,-1000.0,0.00016679,2]
[392383151,1761414635184,-151.0,0.00016679,2]
[392383152,1761414635195,-1000.0,0.00016679,2]
[392383153,1761414635204,-151.0,0.00016679,2]
[392383154,1761414635216,-151.0,0.00016679,2]
[392383155,1761414635227,-151.0,0.00016679,2]
[392383156,1761414635237,-151.0,0.00016679,2]
[392383157,1761414635247,-151.0,0.00016679,2]
[392383158,1761414635256,-151.0,0.00016679,2]
[392383159,1761414635267,-153.45650044,0.00016684,2]
[392383160,1761414635276,-270.70461672,0.00016684,2]
[392383161,1761414635287,-261.0,0.00016686,2]
[392383162,1761414635298,-500.0,0.00016687,2]
[392383163,1761414635308,-500.0,0.00016688,2]
[392383164,1761414635317,-500.0,0.00016688,2]
[392383165,1761414635327,-256.85846377,0.00016688,2]
[392383166,1761414635336,-500.0,0.00016688,2]
[392383167,1761414635346,-324.5802496,0.00016688,2]
[392383168,1761414635356,-567.53174701,0.00016688,2]
[392383169,1761414635365,-500.0,0.00016689,2]
[392383170,1761414635374,-272434.25722397,0.00016689,2]
[392383171,1761414635383,-905.83,0.00016784,2]
[392383172,1761414635393,-500.0,0.00016784,2]
[392383173,1761414635402,-500.0,0.00016784,2]
[392383174,1761414635411,-500.0,0.00016784,2]
[392383175,1761414635420,-500.0,0.00016784,2]
[392383176,1761414635429,-500.0,0.00016784,2]
[392383177,1761414635439,-500.0,0.00016784,2]
[392383178,1761414635448,-500.0,0.00016784,2]
[392383179,1761414635457,-500.0,0.00016784,2]
[392383180,1761414635466,-500.0,0.00016784,2]
[392383181,1761414635475,-500.0,0.00016784,2]
[392383182,1761414635484,-500.0,0.00016784,2]
[392383183,1761414635494,-500.0,0.00016784,2]
[392383184,1761414635503,-500.0,0.00016784,2]
[392383185,1761414635512,-500.0,0.00016784,2]
[392383186,1761414635522,-500.0,0.00016784,2]
[392383187,1761414635531,-2656.78,0.00016784,2]
[392383188,1761414635546,-500.0,0.00016784,2]
[392383189,1761414635555,-500.0,0.00016784,2]
[392383190,1761414635564,-500.0,0.00016784,2]
[392383191,1761414635573,-500.0,0.00016784,2]
[392383192,1761414635583,-500.0,0.00016784,2]
[392383193,1761414635593,-3075.12,0.00016784,2]
[392383194,1761414635602,-500.0,0.00016784,2]
[392383195,1761414635611,-500.0,0.00016784,2]
[392383196,1761414635622,-500.0,0.00016784,2]
[392383197,1761414635632,-500.0,0.00016784,2]
[392383198,1761414635641,-500.0,0.00016784,2]
[392383199,1761414635651,-1344.74,0.00016784,2]
[392383200,1761414635660,-638.28,0.00016784,2]
[392383201,1761414635669,-500.0,0.00016784,2]
[392383202,1761414635678,-500.0,0.00016784,2]
[392383203,1761414635687,-589.45,0.00016784,2]
[392383204,1761414635696,-926.47,0.00016784,2]
[392383205,1761414635706,-500.0,0.00016784,2]
[392383206,1761414635715,-1029.76,0.00016784,2]
[392383207,1761414635724,-500.0,0.00016784,2]
[392383208,1761414635733,-500.0,0.00016784,2]
[392383209,1761414635743,-225.92344752,0.00016784,2]
[392383210,1761414635751,-500.0,0.00016784,2]
[392383211,1761414635761,-1177.17,0.00016784,2]
[392383212,1761414635770,-431.29685559,0.00016784,2]
[392383213,1761414635780,-500.0,0.00016784,2]
[392383214,1761414635789,-500.0,0.00016784,2]
[392383215,1761414635799,-508.50763261,0.00016784,2]
[392383216,1761414635809,-500.0,0.00016784,2]
[392383217,1761414635818,-500.0,0.00016784,2]
[392383218,1761414635827,-500.0,0.00016784,2]
[392383219,1761414635837,-500.0,0.00016784,2]
[392383220,1761414635847,-1349.62,0.00016784,2]
[392383221,1761414635856,-369.77747346,0.00016784,2]
[392383222,1761414635866,-500.0,0.00016784,2]
[392383223,1761414635875,-1157.75,0.00016784,2]
[392383224,1761414635885,-507.43118558,0.00016784,2]
[392383225,1761414635895,-500.0,0.00016784,2]
[392383226,1761414635904,-500.0,0.00016784,2]
[392383227,1761414635913,-500.0,0.00016784,2]
[392383228,1761414635922,-500.0,0.00016784,2]
[392383229,1761414635932,-500.0,0.00016784,2]
[392383230,1761414635942,-500.0,0.00016784,2]
[392383231,1761414635952,-500.0,0.00016784,2]
[392383232,1761414635961,-500.0,0.00016784,2]
[392383233,1761414635971,-500.0,0.00016784,2]
[392383234,1761414635980,-500.0,0.00016784,2]
[392383235,1761414635990,-500.0,0.00016784,2]
[392383236,1761414635999,-500.0,0.00016784,2]
[392383237,1761414636009,-500.0,0.00016784,2]
[392383238,1761414636019,-500.0,0.00016784,2]
[392383239,1761414636029,-500.0,0.00016784,2]
[392383240,1761414636039,-1727.07,0.00016784,2]
[392383241,1761414636048,-492.91653296,0.00016784,2]
[392383242,1761414636058,-1890.76,0.00016784,2]
[392383243,1761414636068,-512.70355622,0.00016784,2]
[392383244,1761414636077,-500.0,0.00016784,2]
[392383245,1761414636086,-505.86236669,0.00016784,2]
[392383246,1761414636096,-500.0,0.00016784,2]
[392383247,1761414636106,-500.0,0.00016784,2]
[392383248,1761414636115,-1668.75,0.00016784,2]
[392383249,1761414636125,-223.98592262,0.00016786,2]
[392383250,1761414636135,-500.0,0.00016786,2]
[392383251,1761414636145,-233.95319957,0.00016786,2]
[392383252,1761414636154,-500.0,0.00016786,2]
[392383253,1761414636164,-645.03298267,0.00016786,2]
[392383254,1761414636173,-500.0,0.00016786,2]
[392383255,1761414636183,-500.0,0.00016786,2]
[392383256,1761414636193,-500.0,0.00016786,2]
[392383257,1761414636203,-505.95094114,0.00016786,2]
[392383258,1761414636215,-500.0,0.00016786,2]
[392383259,1761414636227,-500.0,0.00016786,2]
[392383260,1761414636236,-370.23989037,0.00016786,2]
[392383261,1761414636246,-500.0,0.00016786,2]
[392383262,1761414636257,-500.0,0.00016786,2]
[392383263,1761414636267,-500.0,0.00016786,2]
[392383264,1761414636277,-500.0,0.00016786,2]
[392383265,1761414636286,-500.0,0.00016786,2]
[392383266,1761414636295,-500.0,0.00016786,2]
[392383267,1761414636304,-500.0,0.00016786,2]
[392383268,1761414636314,-516.701066,0.00016786,2]
[392383269,1761414636324,-500.0,0.00016786,2]
[392383270,1761414636334,-500.0,0.00016786,2]
[392383271,1761414636343,-787.79,0.00016786,2]
[392383272,1761414636353,-1028.57,0.00016786,2]
[392383273,1761414636363,-500.0,0.00016786,2]
[392383274,1761414636372,-500.0,0.00016786,2]
[392383275,1761414636381,-1000.0,0.00016786,2]
[392383276,1761414636391,-500.0,0.00016786,2]
[392383277,1761414636400,-540.25,0.00016786,2]
[392383278,1761414636410,-500.0,0.00016786,2]
[392383279,1761414636419,-500.0,0.00016786,2]
[392383280,1761414636428,-500.0,0.00016786,2]
[392383281,1761414636438,-596.39,0.00016786,2]
[392383282,1761414636447,-500.0,0.00016786,2]
[392383283,1761414636456,-505.5765799,0.00016786,2]
[392383284,1761414636466,-500.0,0.00016786,2]
[392383285,1761414636476,-505.28791616,0.00016786,2]
[392383286,1761414636485,-586.59702646,0.00016786,2]
[392383287,1761414636494,-500.0,0.00016786,2]
[392383288,1761414636504,-500.0,0.00016786,2]
[392383289,1761414636513,-500.0,0.00016786,2]
[392383290,1761414636522,-500.0,0.00016786,2]
[392383291,1761414636531,-502.31117879,0.00016786,2]
[392383292,1761414636540,-500.0,0.00016786,2]
[392383293,1761414636549,-500.0,0.00016786,2]
[392383294,1761414636563,-500.0,0.00016786,2]
[392383295,1761414636572,-500.0,0.00016786,2]
[392383296,1761414636583,-1079.42,0.00016786,2]
[392383297,1761414636592,-500.0,0.00016786,2]
[392383298,1761414636602,-500.0,0.00016786,2]
[392383299,1761414636611,-500.0,0.00016786,2]
[392383300,1761414636620,-500.0,0.00016786,2]
[392383301,1761414636630,-504.26062699,0.00016786,2]
[392383302,1761414636639,-500.0,0.00016786,2]
[392383303,1761414636648,-500.0,0.00016786,2]
[392383304,1761414636657,-500.0,0.00016786,2]
[392383305,1761414636668,-507.08,0.00016786,2]
[392383306,1761414636677,-500.0,0.00016786,2]
[392383307,1761414636687,-500.0,0.00016786,2]
[392383308,1761414636699,-500.0,0.00016786,2]
[392383309,1761414636708,-500.0,0.00016786,2]
[392383310,1761414636718,-500.0,0.00016786,2]
[392383311,1761414636727,-241.75258726,0.00016786,2]
[392383312,1761414636738,-1000.0,0.00016786,2]
[392383313,1761414636748,-500.0,0.00016786,2]
[392383314,1761414636759,-500.0,0.00016786,2]
[392383315,1761414636769,-500.0,0.00016786,2]
[392383316,1761414636779,-500.0,0.00016786,2]
[392383317,1761414636790,-500.0,0.00016786,2]
[392383318,1761414636801,-500.0,0.00016786,2]
[392383319,1761414636812,-500.0,0.00016786,2]
[392383320,1761414636821,-500.0,0.00016786,2]
[392383321,1761414636830,-500.0,0.00016786,2]
[392383322,1761414636840,-500.0,0.00016786,2]
[392383323,1761414636850,-1634.44,0.00016786,2]
[392383324,1761414636860,-154.231239,0.00016786,2]
[392383325,1761414636870,-151.0,0.00016786,2]
[392383326,1761414636881,-500.0,0.00016786,2]
[392383327,1761414636892,-500.0,0.00016786,2]
[392383328,1761414636903,-812.6,0.00016786,2]
[392383329,1761414636965,-500.0,0.00016786,2]
[392383330,1761414636975,-500.0,0.00016786,2]
[392383331,1761414636984,-500.0,0.00016786,2]
[392383332,1761414636994,-500.0,0.00016786,2]
[392383333,1761414637004,-500.0,0.00016786,2]
[392383334,1761414637013,-500.0,0.00016786,2]
[392383335,1761414637022,-500.0,0.00016786,2]
[392383336,1761414637031,-500.0,0.00016786,2]
[392383337,1761414637040,-500.0,0.00016786,2]
[392383338,1761414637049,-500.0,0.00016786,2]
[392383339,1761414637058,-500.0,0.00016786,2]
[392383340,1761414637067,-500.0,0.00016786,2]
[392383341,1761414637077,-500.0,0.00016786,2]
[392383342,1761414637086,-500.0,0.00016786,2]
[392383343,1761414637095,-500.0,0.00016786,2]
[392383344,1761414637105,-500.0,0.00016786,2]
[392383345,1761414637114,-1548.14,0.00016786,2]
[392383346,1761414637124,-500.0,0.00016786,2]
[392383347,1761414637133,-511.57035041,0.00016786,2]
[392383348,1761414637142,-500.0,0.00016786,2]
[392383349,1761414637152,-503.53,0.00016786,2]
[392383350,1761414637161,-500.0,0.00016786,2]
[392383351,1761414637171,-500.0,0.00016787,2]
[392383352,1761414637180,-504.15083755,0.00016787,2]
[392383353,1761414637190,-500.0,0.00016787,2]
[392383354,1761414637199,-500.0,0.00016787,2]
[392383355,1761414637208,-500.0,0.00016787,2]
[392383356,1761414637217,-35.87359201,0.00016787,2]
[392383383,1761414638052,-500.0,0.00016654,2]
[392383384,1761414638062,-500.0,0.00016654,2]
[392383385,1761414638072,-245.92216091,0.00016654,2]
[392383386,1761414638081,-244.67515684,0.00016654,2]
[392383387,1761414638090,-500.0,0.00016656,2]
[392383388,1761414638100,-464.12640799,0.00016787,2]
[392383389,1761414638109,-526.42246497,0.00016787,2]
[392383390,1761414638118,-500.0,0.00016787,2]
[392383391,1761414638128,-500.0,0.00016787,2]
[392383392,1761414638137,-500.0,0.00016787,2]
[392383393,1761414638146,-500.0,0.00016787,2]
[392383394,1761414638155,-500.0,0.00016787,2]
[392383395,1761414638164,-640.33774295,0.00016787,2]
[392383396,1761414638173,-500.0,0.00016787,2]
[392383397,1761414638183,-500.22,0.00016787,2]
[392383398,1761414638192,-500.0,0.00016787,2]
[392383399,1761414638201,-568.85888302,0.00016787,2]
[392383400,1761414638210,-500.0,0.00016787,2]
[392383401,1761414638220,-500.0,0.00016787,2]
[392383402,1761414638229,-553.89,0.00016787,2]
[392383403,1761414638238,-500.0,0.00016787,2]
[392383404,1761414638247,-500.0,0.00016787,2]
[392383405,1761414638257,-500.0,0.00016787,2]
[392383406,1761414638266,-537.51016723,0.00016787,2]
[392383414,1761414640305,-2546.08,0.00016655,2]
[392383415,1761414640316,-500.0,0.00016656,2]
[392383416,1761414640325,-500.0,0.00016672,2]
[392383417,1761414640335,-201.49983277,0.00016787,2]
[392383418,1761414640344,-668.6,0.00016787,2]
[392383419,1761414640353,-384.51257747,0.00016787,2]
[392383420,1761414640364,-119.00949603,0.00016787,2]
[392383421,1761414640373,-500.0,0.00016787,2]
[392383422,1761414640382,-500.0,0.00016787,2]
[392383423,1761414640391,-500.0,0.00016787,2]
[392383424,1761414640400,-500.0,0.00016787,2]
[392383425,1761414640409,-500.0,0.00016787,2]
[392383426,1761414640418,-502.91476915,0.00016787,2]
[392383427,1761414640428,-233.25646543,0.00016787,2]
[392383428,1761414640553,-3e-08,0.00016787,2]
[392383429,1761414640597,10000.01,0.00016573,2]
[392383446,1761414643390,-1682.85496127,0.00016573,2]
[392383461,1761414650308,-251.55809091,0.00016573,2]
[392383462,1761414659916,-195.99999997,0.00016573,2]
[392383463,1761414672887,177.51093742,0.00018895,6]
[392383464,1761414673115,177.51093742,0.00020038,9]
[392383465,1761414677155,-309.67655289,0.00016407,2]
[392383466,1761414679241,-345.75950302,0.00016407,2]
[392383467,1761414680784,-391.90342525,0.00016407,2]
[392383468,1761414682726,-344.33515959,0.00016407,2]
[392383469,1761414684686,-166.10512087,0.00016407,2]
[392383470,1761414686162,-292.92206053,0.00016407,2]
[392383471,1761414687737,-218.90595128,0.00016407,2]
[392383472,1761414704350,-199.19903338,0.00016407,2]
[392383473,1761414705754,-410.05096662,0.00016407,2]
[392383474,1761414706867,150.0,0.00017016,30]
[392383475,1761414707292,150.0,0.00018563,30]
[392383476,1761414708223,-300.0,0.00016407,2]
[392383477,1761414710296,-236.8945931,0.00016407,2]
[392383478,1761414710876,196.0,0.00016,2]
[392383479,1761414711025,7144.228411,0.00015659,2]
[392383480,1761414711168,196.0,0.00016191,2]
[392383481,1761414711462,196.0,0.00016382,2]
[392383482,1761414711714,-156.56740162,0.00016407,2]
[392383483,1761414712663,487.86,0.00016563,3]
[392383484,1761414712897,975.72,0.00017933,3]
[392383485,1761414713134,-187.88725035,0.00016407,2]
[392383486,1761414714653,-314.25338474,0.00016407,2]
[392383487,1761414716607,-500.0,0.00016407,2]
[392383488,1761414718584,621.67537035,0.00016407,2]
[392383489,1761414718642,-300.0,0.00016407,2]
[392383490,1761414720408,-279.52149735,0.00016407,2]
[392383491,1761414721928,-486.40397188,0.00016407,2]
[392383492,1761414723385,243.93,0.00016563,3]
[392383493,1761414723451,-438.03800689,0.00016407,2]
[392383494,1761414723640,487.86,0.00017933,3]
[392383495,1761414724899,-242.32286337,0.00016407,2]
[392383496,1761414726983,-304.61107366,0.00016407,2]
[392383497,1761414730023,-281.31986779,0.00016407,2]
[392383498,1761414732707,-199.19903338,0.00016407,2]
[392383499,1761414734055,731.79,0.00016563,3]
[392383500,1761414741166,199.19903338,0.00016407,2]
[392383501,1761414765678,1446.90718527,0.00015717,2]
[392383502,1761414765702,44.57086573,0.00015717,2]
[392383503,1761414772064,494.068459,0.00019,6]
[392383504,1761414774456,1413.9909216,0.00015593,2]
[392383505,1761414784018,150.0,0.00017027,30]
[392383506,1761414784435,150.0,0.00018575,30]
[392383508,1761414810786,510.99336028,0.00016273,2]
[392383509,1761414812918,919.78804851,0.0001635,2]
[392383510,1761414818632,6983.9456935,0.00015572,2]
[392383511,1761414819997,298.30557,0.00019,6]
[392383512,1761414832618,126.72111038,0.00016,2]
[392383513,1761414832639,69.27888962,0.00016,2]
[392383514,1761414861269,150.0,0.00017094,30]
[392383515,1761414861664,150.0,0.00018648,30]
[392383516,1761414864320,2093.76550045,0.00016407,2]
[392383517,1761414912884,4831.868709,0.00015549,2]
[392383518,1761414930305,2191.69131161,0.00016428,2]
[392383519,1761414937332,150.0,0.00017141,30]
[392383520,1761414937742,150.0,0.00018699,30]
[392383521,1761414951263,196.0,0.00016,2]
[392383522,1761414951564,196.0,0.00016233,2]
[392383523,1761414953645,2584.44997939,0.00016428,2]
[392383524,1761414953668,223.858709,0.00016428,2]
[392383525,1761414959927,151.43078994,0.0001615,2]
[392383526,1761414962126,605.72315974,0.00016228,2]
[392383527,1761414964123,1362.87710942,0.00016307,2]
[392383528,1761414966139,2422.89263897,0.00016385,2]
[392383529,1761414984186,-1635.1787529,0.00016428,2]
[392383530,1761414999259,-3785.76974839,0.00016463,2]
[392383531,1761415013408,150.0,0.00017172,30]
[392383532,1761415013658,150.0,0.00018733,30]
[392383533,1761415014378,-196.0,0.00016467,2]
[392383534,1761415029558,-708.5921563,0.00016472,2]
[392383535,1761415036694,171.604451,0.00015659,2]
[392383536,1761415036894,171.604451,0.00015659,61]
[392383537,1761415037106,171.604451,0.00015659,120]
[392383538,1761415044730,-2554.9668014,0.00016506,2]
[392383539,1761415048800,-202.58352448,0.00016524,2]
[392383540,1761415051873,-196.0,0.00016524,2]
[392383541,1761415053971,-169.2409197,0.00016524,2]
[392383542,1761415059944,-632.17555582,0.00016524,2]
[392383543,1761415070854,169.2409197,0.00016524,2]
[392383544,1761415071472,196.0,0.00016,2]
[392383545,1761415075033,-1927.70349813,0.00016525,2]
[392383546,1761415079341,-196.00237543,0.00016531,2]
[392383547,1761415081871,-103.99762457,0.00016531,2]
[392383548,1761415081891,-92.00237543,0.00016531,2]
[392383549,1761415084544,-207.99762457,0.00016531,2]
[392383550,1761415084565,-127.52878576,0.00016532,2]
[392383551,1761415088993,150.0,0.00013497,30]
[392383552,1761415089225,-222.7590803,0.00016532,2]
[392383553,1761415089368,150.0,0.00014724,30]
[392383554,1761415089812,150.0,0.00015951,30]
[392383555,1761415090228,-1577.41563204,0.00016532,2]
[392383556,1761415090276,150.0,0.00017178,30]
[392383557,1761415090636,150.0,0.00018405,30]
[392383558,1761415091034,155.95,0.00019632,30]
[392383559,1761415092955,-242.26056156,0.00016535,2]
[392383560,1761415095813,-270.86971922,0.00016535,2]
[392383561,1761415099462,-196.0,0.00016535,2]
[392383562,1761415105383,-490.86971922,0.00016535,2]
[392383563,1761415105416,-300.0,0.00016535,2]
[392383564,1761415120628,-232.20368877,0.00016536,2]
[392383565,1761415120656,-586.0809951,0.00016536,2]
[392383566,1761415120684,-500.0,0.00016536,2]
[392383567,1761415120712,-500.0,0.00016536,2]
[392383568,1761415120740,-366.73863273,0.00016536,2]
[392383569,1761415120769,-500.0,0.00016536,2]
[392383570,1761415120802,-221.87943214,0.00016536,2]
[392383571,1761415120832,-500.0,0.00016536,2]
[392383572,1761415120862,-500.0,0.00016536,2]
[392383573,1761415120893,-500.0,0.00016536,2]
[392383574,1761415120925,-500.0,0.00016536,2]
[392383575,1761415121164,-500.0,0.00016536,2]
[392383576,1761415121195,-500.0,0.00016536,2]
[392383577,1761415121226,-500.0,0.00016536,2]
[392383578,1761415121257,-500.0,0.00016536,2]
[392383579,1761415121285,-500.0,0.00016536,2]
[392383580,1761415121316,-500.0,0.00016536,2]
[392383581,1761415121344,-500.0,0.00016536,2]
[392383582,1761415121373,-359.88892944,0.00016536,2]
[392383583,1761415121403,-500.0,0.00016536,2]
[392383584,1761415121475,-500.0,0.00016536,2]
[392383585,1761415121611,-500.0,0.00016536,2]
[392383586,1761415121639,-500.0,0.00016536,2]
[392383587,1761415121667,-500.0,0.00016536,2]
[392383588,1761415121693,-500.0,0.00016536,2]
[392383589,1761415121721,-500.0,0.00016536,2]
[392383590,1761415121748,-500.0,0.00016536,2]
[392383591,1761415121775,-500.0,0.00016536,2]
[392383592,1761415121806,-500.0,0.00016536,2]
[392383593,1761415125457,620.01813678,0.00016439,2]
[392383594,1761415136297,-886.57067098,0.00016537,2]
[392383595,1761415136343,-10000.01,0.00016537,2]
[392383596,1761415136368,-10000.01,0.00016537,2]
[392383597,1761415136487,-10000.01,0.00016537,2]
[392383598,1761415136617,-10000.01,0.00016537,2]
[392383599,1761415136747,-10000.01,0.00016537,2]
[392383600,1761415141770,-10000.01,0.00016537,2]
[392383601,1761415141976,-10000.01,0.00016537,2]
[392383602,1761415142111,-10000.01,0.00016537,2]
[392383603,1761415142275,-10000.01,0.00016537,2]
[392383604,1761415142415,-10000.01,0.00016537,2]
[392383605,1761415156974,-300.0,0.00016536,2]
[392383606,1761415172063,-10000.01,0.00016537,2]
[392383607,1761415172191,-10000.01,0.00016537,2]
[392383608,1761415172338,-10000.01,0.00016537,2]
[392383609,1761415172516,-10000.01,0.00016537,2]
[392383610,1761415172619,-10000.01,0.00016537,2]
[392383611,1761415172792,-10000.01,0.00016537,2]
[392383612,1761415172916,-10000.01,0.00016537,2]
[392383613,1761415173125,-10000.01,0.00016537,2]
[392383614,1761415173224,-10000.01,0.00016537,2]
[392383615,1761415173383,-10000.01,0.00016537,2]
[392383616,1761415184130,-10000.01,0.00016537,2]
[392383617,1761415184229,-10000.01,0.00016537,2]
[392383618,1761415184341,-10000.01,0.00016537,2]
[392383619,1761415184583,-10000.01,0.00016537,2]
[392383620,1761415184699,-10000.01,0.00016537,2]
[392383621,1761415184851,-10000.01,0.00016537,2]
[392383622,1761415184973,-10000.01,0.00016537,2]
[392383623,1761415185138,-10000.01,0.00016537,2]
[392383624,1761415185271,-10000.01,0.00016537,2]
[392383625,1761415185374,-10000.01,0.00016537,2]
[392383626,1761415193234,-196.0,0.00016,2]
[392383627,1761415193263,-196.0,0.0001621,2]
[392383628,1761415193292,-196.0,0.0001642,2]